bitfinex/quotes_ETHUSD_20250823
["timestamp","ask_amount","ask_price","bid_price","bid_amount"]
[1755933016373,0.4498,4747.1,4746.6,0.1056]
[1755933016667,0.2913,4746.7,4746.6,0.1056]
[1755933017039,0.7411,4746.7,4746.6,0.1056]
[1755933018666,0.4509,4747.0,4746.6,0.1056]
[1755933022777,0.4509,4746.9,4746.6,0.1056]
[1755933023278,0.3089,4746.7,4746.6,0.1056]
[1755933024277,0.7598,4746.7,4746.6,0.1056]
[1755933026484,0.3089,4746.7,4746.6,0.1056]
[1755933030593,0.4509,4746.9,4746.6,0.1056]
[1755933030766,0.001,4747.2,4746.7,0.02106726]
[1755933030965,0.001,4747.2,4747.1,0.2981]
[1755933031162,0.001,4747.2,4747.1,0.4037]
[1755933031594,0.001,4747.2,4747.1,0.8632]
[1755933033092,0.001,4747.2,4747.1,1.12196403]
[1755933033858,0.001,4747.2,4747.1,1.14302952]
[1755933034092,0.001,4747.2,4747.1,1.12196403]
[1755933034408,0.001,4747.2,4747.1,1.20632903]
[1755933034599,0.001,4747.2,4747.1,1.22739452]
[1755933035965,0.001,4747.2,4747.1,1.88739452]
[1755933036170,0.001,4747.2,4747.1,1.86632903]
[1755933036505,0.001,4747.2,4747.1,2.12955836]
[1755933038204,1.727e-05,4747.2,4747.1,2.10849287]
[1755933038423,1.727e-05,4747.2,4747.1,2.12955836]
[1755933038567,1.727e-05,4747.2,4747.1,2.4258184]
[1755933038771,1.727e-05,4747.2,4747.1,2.3202184]
[1755933039100,1.727e-05,4747.2,4747.1,2.4258184]
[1755933039265,0.001,4747.4,4747.2,3.66]
[1755933039470,0.001,4747.4,4747.3,1.58774644]
[1755933039804,0.001,4747.9,4747.4,6.92042388]
[1755933040016,0.001,4747.9,4747.7,0.9581]
[1755933040166,0.001,4747.9,4747.7,9.22176283]
[1755933040362,0.001,4747.9,4747.7,12.04424184]
[1755933041173,0.001,4748.0,4747.8,3.66]
[1755933041376,0.001,4750.1,4748.2,3.66]
[1755933041574,0.001,4750.1,4748.8,13.19241401]
[1755933041788,0.001,4750.1,4748.8,18.43401401]
[1755933041988,0.001,4750.1,4748.8,18.89351401]
[1755933042188,0.001,4750.1,4748.8,18.97781901]
[1755933043087,0.001,4750.1,4748.8,18.97881901]
[1755933043294,0.001,4750.1,4748.8,21.12069701]
[1755933043785,0.001,4750.1,4748.8,21.36286085]
[1755933045475,0.001,4750.1,4748.8,21.12069701]
[1755933045672,0.4509,4750.0,4748.8,21.12069701]
[1755933048928,0.4509,4750.0,4748.8,21.36286085]
[1755933050526,0.4673,4749.8,4748.8,21.36286085]
[1755933051394,0.02,4749.8,4748.8,21.36286085]
[1755933051595,0.02,4749.8,4748.8,21.65912089]
[1755933052413,0.02,4749.8,4748.9,3.66]
[1755933052617,0.02,4749.8,4749.0,7.486]
[1755933052810,0.02,4749.8,4749.0,8.49482388]
[1755933053123,0.02,4749.8,4749.0,8.57912388]
[1755933055025,0.02,4749.8,4749.0,38.57912388]
[1755933055208,0.02,4749.8,4749.0,40.72100188]
[1755933055408,0.02,4749.8,4749.1,3.66]
[1755933055605,0.02,4749.8,4749.3,4.0766]
[1755933055810,0.02,4749.8,4749.5,12.89431401]
[1755933056016,0.02,4749.8,4749.5,43.74373789]
[1755933056221,0.02,4749.8,4749.5,46.35601589]
[1755933056741,0.02,4749.8,4749.5,46.54467943]
[1755933057328,0.02,4749.8,4749.7,0.66]
[1755933057529,0.02,4749.8,4749.7,39.45176384]
[1755933057732,0.02,4749.8,4749.7,35.93676384]
[1755933057935,0.02,4749.8,4749.7,24.17105205]
[1755933058232,0.02,4749.8,4749.7,23.87479201]
[1755933058233,0.7745,4749.8,4749.7,23.87479201]
[1755933058709,0.7745,4749.8,4749.7,24.53479201]
[1755933061649,0.7745,4749.8,4749.7,20.27479201]
[1755933061812,0.7745,4749.8,4749.7,22.49679201]
[1755933062013,0.7745,4749.8,4749.7,20.27479201]
[1755933062939,0.3272,4749.8,4749.7,20.27479201]
[1755933064163,0.7745,4749.8,4749.7,20.27479201]
[1755933064661,0.02,4749.8,4749.7,20.51695585]
[1755933064859,0.3272,4749.8,4749.7,20.51695585]
[1755933065426,0.02,4749.8,4749.7,20.51695585]
[1755933065633,0.3272,4749.8,4749.7,20.51695585]
[1755933067059,0.02,4749.8,4749.7,20.51695585]
[1755933069239,0.02,4749.8,4749.7,23.68791589]
[1755933069470,0.02,4749.8,4749.7,21.26051589]
[1755933069666,0.3272,4749.8,4749.7,20.96425585]
[1755933069838,0.02,4749.8,4749.7,20.96425585]
[1755933070239,0.02,4749.8,4749.7,21.27525585]
[1755933071248,0.02,4749.8,4749.7,24.25991589]
[1755933071476,0.00148801,4749.8,4749.7,54.15431589]
[1755933071781,0.00148801,4749.8,4749.7,54.25991589]
[1755933072742,0.001,4750.1,4749.8,36.12016384]
[1755933072966,0.001,4750.3,4750.0,6.189]
[1755933073169,0.001,4750.3,4750.2,5.878]
[1755933073471,0.001,4750.3,4750.2,36.72742388]
[1755933073683,0.001,4750.3,4750.2,37.19782388]
[1755933073986,0.001,4750.3,4750.2,30.18082388]
[1755933074285,0.001,4750.3,4750.2,29.58261589]
[1755933074460,0.001,4750.3,4750.2,20.77319201]
[1755933074896,0.3082,4750.3,4750.2,20.77319201]
[1755933075288,0.3082,4750.3,4750.2,18.55519201]
[1755933075586,0.7555,4750.3,4750.2,18.55519201]
[1755933075786,0.7555,4750.3,4750.2,15.03619201]
[1755933075988,0.7555,4750.3,4750.2,5.662878]
[1755933076188,0.7555,4750.3,4750.2,3.523]
[1755933079575,0.7555,4750.3,4750.0,0.1056]
[1755933079902,0.3082,4750.3,4750.1,3.522]
[1755933080081,0.4293,4750.2,4750.1,3.522]
[1755933080402,0.7147,4750.2,4750.1,3.522]
[1755933080964,0.7147,4750.2,4750.0,0.1056]
[1755933081191,0.4293,4750.1,4750.0,0.1056]
[1755933081382,0.7147,4750.1,4750.0,0.1056]
[1755933081605,0.7147,4750.1,4750.0,0.12665263]
[1755933081826,0.7147,4750.1,4750.0,0.47286526]
[1755933082388,0.7147,4750.1,4750.0,3.49391789]
[1755933082839,0.7147,4750.1,4750.0,3.47286526]
[1755933083196,0.2854,4750.1,4750.0,3.47286526]
[1755933083598,0.7147,4750.1,4750.0,0.47286526]
[1755933083799,0.7147,4750.1,4750.0,3.6306]
[1755933085022,0.7147,4750.1,4750.0,0.1056]
[1755933085323,0.7147,4750.1,4750.0,6.6306]
[1755933085820,0.001,4750.3,4750.0,6.9338]
[1755933085996,0.001,4750.3,4750.1,3.87623218]
[1755933086203,0.001,4750.3,4750.1,0.87623218]
[1755933086520,0.001,4750.3,4750.1,4.11839602]
[1755933087326,0.001,4750.3,4750.2,1.31096384]
[1755933087830,0.001,4750.3,4750.2,7.83596384]
[1755933088125,0.001,4750.3,4750.2,9.25925822]
[1755933088309,0.001,4750.3,4750.2,9.01709438]
[1755933089226,0.001,4750.3,4750.2,9.25925822]
[1755933090497,0.001,4750.3,4750.2,9.73275822]
[1755933091920,0.001,4750.3,4750.2,9.25925822]
[1755933092322,0.001,4750.3,4750.2,9.73275822]
[1755933093739,0.001,4750.3,4750.2,9.01709438]
[1755933093943,0.001,4750.3,4750.2,5.18889438]
[1755933094149,0.001,4750.3,4750.2,8.71189438]
[1755933094844,0.2864,4750.3,4750.2,8.71189438]
[1755933095208,0.7157,4750.3,4750.2,8.71189438]
[1755933097716,0.7157,4750.3,4750.2,9.34407138]
[1755933098443,0.2864,4750.3,4750.2,9.34407138]
[1755933098838,0.7157,4750.3,4750.2,9.34407138]
[1755933099231,0.2864,4750.3,4750.2,9.34407138]
[1755933100249,0.2864,4750.3,4750.2,5.16107138]
[1755933100453,0.7157,4750.3,4750.2,8.68207138]
[1755933103348,0.2864,4750.3,4750.2,8.68207138]
[1755933103725,0.001,4750.3,4750.2,8.68207138]
[1755933105166,0.001,4750.3,4750.2,9.88743522]
[1755933106059,0.001,4750.3,4750.2,19.12174923]
[1755933106259,0.001,4750.3,4750.2,19.89150927]
[1755933110754,0.001,4750.3,4750.2,19.41800927]
[1755933111650,8.536e-05,4750.3,4750.2,19.88810927]
[1755933113476,8.536e-05,4750.3,4750.2,19.17584543]
[1755933113847,8.536e-05,4750.3,4750.2,9.94153142]
[1755933115679,8.536e-05,4750.3,4750.2,10.41163142]
[1755933118780,8.536e-05,4750.3,4750.2,52.09519846]
[1755933121789,0.00188811,4750.8,4750.7,3.66]
[1755933121995,0.00188811,4750.8,4750.7,18.9043]
[1755933122200,0.00188811,4750.8,4750.7,19.0099]
[1755933122893,0.00188811,4750.8,4750.7,42.471]
[1755933123098,0.00188811,4750.8,4750.7,42.555266]
[1755933123472,0.00188811,4750.8,4750.7,42.61267907]
[1755933123693,0.00188811,4750.8,4750.7,43.08277907]
[1755933124216,0.00188811,4750.8,4750.7,40.01777907]
[1755933124991,0.00188811,4750.8,4750.7,43.08277907]
[1755933126115,0.001,4751.2,4751.1,2.878]
[1755933126284,0.001,4751.2,4751.1,49.17733535]
[1755933126489,0.001,4751.2,4751.1,51.92732073]
[1755933126814,0.001,4751.2,4751.1,52.48167473]
[1755933127223,0.001,4751.2,4751.1,52.22915339]
[1755933127385,0.001,4751.2,4751.1,54.37103139]
[1755933127909,0.001,4751.2,4751.1,24.37103139]
[1755933128420,0.001,4751.2,4751.1,51.72664601]
[1755933129623,0.001,4751.3,4751.2,10.137]
[1755933129919,0.001,4751.3,4751.2,45.4875]
[1755933130127,0.001,4751.3,4751.2,47.629378]
[1755933130423,0.001,4751.3,4751.2,47.713632]
[1755933130626,0.001,4751.3,4751.2,47.96615334]
[1755933131122,0.001,4751.3,4751.2,48.26241338]
[1755933131530,0.001,4751.3,4751.2,51.37689876]
[1755933131919,0.00115109,4751.8,4751.7,15.11231401]
[1755933132130,0.00115109,4751.8,4751.7,24.79781401]
[1755933132330,0.00115109,4751.8,4751.7,25.05033535]
[1755933132533,0.00115109,4751.8,4751.7,25.13458135]
[1755933132732,0.001,4752.3,4751.7,57.38205935]
[1755933132909,0.001,4752.3,4752.0,5.9836]
[1755933133236,0.001,4752.3,4752.0,42.43751156]
[1755933133529,0.001,4752.3,4752.0,43.1601329]
[1755933133698,0.001,4752.3,4752.0,40.51872134]
[1755933133906,0.001,4752.3,4752.0,42.66059934]
[1755933134112,0.001,4752.3,4752.0,45.3020109]
[1755933134339,0.001,4752.3,4752.0,49.5610109]
[1755933134643,0.001,4752.3,4752.0,46.91959934]
[1755933134944,0.7728,4752.1,4752.0,15.900478]
[1755933135545,0.001,4752.1,4752.0,46.44849934]
[1755933135753,0.001,4752.1,4752.0,45.489478]
[1755933135916,0.001,4752.1,4752.0,45.64686376]
[1755933136544,0.001,4752.1,4752.0,46.35336376]
[1755933136846,0.001,4752.1,4752.0,46.6058851]
[1755933137845,0.3119,4752.1,4752.0,42.7943851]
[1755933138145,0.001,4752.1,4752.0,40.6253851]
[1755933138549,0.001,4752.1,4752.0,42.0523851]
[1755933138720,0.001,4752.1,4752.0,42.2614851]
[1755933138916,0.001,4752.1,4752.0,42.3670851]
[1755933139322,0.001,4752.1,4752.0,42.0523851]
[1755933139627,0.3038,4752.1,4752.0,41.16486376]
[1755933139820,0.001,4752.1,4752.0,41.4173851]
[1755933140016,0.3038,4752.1,4752.0,12.7943851]
[1755933140239,0.001,4752.1,4752.0,46.37356376]
[1755933140617,0.001,4752.1,4752.0,46.05886376]
[1755933141037,0.001,4752.1,4752.0,46.3113851]
[1755933141641,0.001,4752.1,4752.0,46.7572851]
[1755933141839,4.963e-05,4752.1,4752.0,46.7572851]
[1755933142038,0.74874963,4752.1,4752.0,10.76976376]
[1755933142426,0.74874963,4752.1,4752.0,14.28676376]
[1755933143462,0.30284963,4752.1,4752.0,14.28676376]
[1755933143623,4.963e-05,4752.1,4752.0,14.5392851]
[1755933143824,4.963e-05,4752.1,4752.0,47.26264514]
[1755933144022,4.963e-05,4752.1,4752.0,47.36824514]
[1755933147354,4.963e-05,4752.1,4752.0,47.80674514]
[1755933148161,4.963e-05,4752.1,4752.0,47.35384514]
[1755933149228,4.963e-05,4752.1,4752.0,47.80674514]
[1755933151061,0.001,4752.3,4752.2,0.66]
[1755933151361,0.001,4752.3,4752.2,42.39835938]
[1755933151956,0.00109726,4752.8,4752.7,12.89431401]
[1755933152151,0.00109726,4752.8,4752.7,47.62291401]
[1755933152152,0.30389726,4752.8,4752.7,47.62291401]
[1755933152357,0.30389726,4752.8,4752.7,48.13291401]
[1755933152652,0.74979726,4752.8,4752.7,48.57881401]
[1755933152853,0.74979726,4752.8,4752.7,49.97142089]
[1755933153164,0.74979726,4752.8,4752.7,19.97242089]
[1755933154078,0.74979726,4752.8,4752.7,16.45542089]
[1755933154284,0.30389726,4752.8,4752.7,19.97242089]
[1755933154570,0.30389726,4752.8,4752.7,49.97242089]
[1755933154571,0.00109726,4752.8,4752.7,49.97242089]
[1755933154979,0.74979726,4752.8,4752.7,26.30742089]
[1755933155137,0.74979726,4752.8,4752.7,19.97242089]
[1755933155471,0.74979726,4752.8,4752.7,10.07910688]
[1755933155682,0.74979726,4752.8,4752.7,10.73910688]
[1755933155876,0.30389726,4752.8,4752.7,10.73910688]
[1755933156075,0.00109726,4752.8,4752.7,10.73910688]
[1755933156866,0.00109726,4752.8,4752.7,14.99810688]
[1755933158945,0.30389726,4752.8,4752.7,14.99810688]
[1755933159155,0.00109726,4752.8,4752.7,14.99810688]
[1755933159471,0.00109726,4752.8,4752.7,45.56532822]
[1755933160096,0.30389726,4752.8,4752.7,44.83562822]
[1755933160288,0.74979726,4752.8,4752.7,44.83562822]
[1755933160448,0.74979726,4752.8,4752.7,47.47830167]
[1755933160650,0.74979726,4752.8,4752.7,43.67930167]
[1755933160977,0.74979726,4752.8,4752.7,17.64078033]
[1755933161381,0.74979726,4752.8,4752.7,14.99810688]
[1755933161762,0.4970278,4752.8,4752.7,15.25062822]
[1755933163281,0.4980278,4752.8,4752.7,15.25062822]
[1755933163781,0.0521278,4752.8,4752.7,17.89330167]
[1755933167382,0.001,4752.8,4752.7,18.50426171]
[1755933167610,0.001,4752.8,4752.7,15.86158826]
[1755933168004,0.001,4752.8,4752.7,15.54688826]
[1755933168771,0.001,4752.8,4752.7,15.86158826]
[1755933169516,0.001,4752.8,4752.7,48.50828826]
[1755933172008,0.001,4753.1,4752.7,48.50828826]
[1755933172009,0.00022147,4753.1,4752.8,3.91252134]
[1755933172201,0.00022147,4753.1,4753.0,13.20901401]
[1755933172398,0.00022147,4753.1,4753.0,43.56633535]
[1755933172602,0.00022147,4753.1,4753.0,43.99503535]
[1755933172804,0.001,4753.8,4753.4,3.66]
[1755933173003,0.001,4753.8,4753.7,13.31381401]
[1755933173230,0.001,4753.8,4753.7,50.58769201]
[1755933173630,0.001,4753.8,4753.7,50.69222709]
[1755933174039,0.001,4753.8,4753.7,50.94474843]
[1755933174253,0.1171,4753.8,4753.7,2.0586]
[1755933174545,0.5555,4753.8,4753.7,5.0586]
[1755933174702,0.5555,4753.8,4753.7,8.5786]
[1755933175528,0.5555,4753.8,4753.7,9.2386]
[1755933175729,0.5555,4753.8,4753.7,10.16246]
[1755933177352,0.001,4753.8,4753.7,10.16246]
[1755933178267,0.3101,4753.8,4753.7,10.16246]
[1755933178663,0.7517,4753.8,4753.7,10.16246]
[1755933178874,0.7517,4753.8,4753.7,10.16346]
[1755933179053,0.7517,4753.8,4753.7,6.64246]
[1755933179255,0.7517,4753.8,4753.7,10.16346]
[1755933179460,0.7517,4753.8,4753.7,6.64246]
[1755933179651,0.7517,4753.8,4753.7,10.16346]
[1755933180367,0.7517,4753.8,4753.7,2.0586]
[1755933180680,0.7517,4753.8,4753.7,8.5796]
[1755933180893,0.7517,4753.8,4753.7,2.0586]
[1755933181086,0.7517,4753.8,4753.7,5.5806]
[1755933181392,0.7517,4753.8,4753.7,5.139]
[1755933184290,0.7517,4753.8,4753.7,5.2438]
[1755933190520,0.7517,4753.8,4752.6,0.004]
[1755933190723,0.4416,4753.7,4752.6,0.004]
[1755933190929,0.3091,4752.7,4752.6,0.004]
[1755933191276,0.7507,4752.7,4752.6,0.004]
[1755933193498,9.98501401,4752.7,4752.6,0.004]
[1755933195011,0.7507,4752.7,4752.6,0.004]
[1755933200541,0.7507,4752.7,4752.6,0.1096]
[1755933202255,0.001,4753.8,4752.6,0.4176]
[1755933202461,0.4567,4753.4,4753.3,0.1048]
[1755933202659,0.7434,4753.4,4753.3,0.1048]
[1755933204375,0.2867,4753.4,4753.3,0.1048]
[1755933205270,0.7434,4753.4,4753.3,0.1048]
[1755933213381,0.1058,4753.8,4753.3,0.4128]
[1755933213382,0.001,4753.8,4753.3,0.4128]
[1755933213581,0.001,4753.8,4753.7,0.1048]
[1755933213983,0.2877,4753.8,4753.7,0.1048]
[1755933214196,0.7444,4753.8,4753.7,0.1048]
[1755933214512,0.7444,4753.8,4752.6,0.004]
[1755933214672,0.4567,4753.7,4753.3,0.1048]
[1755933214873,0.2867,4753.4,4753.3,0.1048]
[1755933215204,0.7434,4753.4,4753.3,0.1048]
[1755933216405,0.2867,4753.4,4753.3,0.1048]
[1755933217007,0.4567,4753.7,4753.3,0.1048]
[1755933218006,0.2867,4753.4,4753.3,0.1048]
[1755933219605,0.7434,4753.4,4753.3,0.1048]
[1755933223004,0.7434,4753.4,4752.6,0.004]
[1755933223207,0.4567,4753.3,4753.1,0.1048]
[1755933223513,0.2867,4753.2,4753.1,0.1048]
[1755933223874,0.7434,4753.2,4753.1,0.1048]
[1755933224075,0.7434,4753.2,4752.6,0.004]
[1755933224281,0.7434,4753.2,4752.9,0.1048]
[1755933224583,0.4567,4753.1,4752.9,0.1048]
[1755933224804,0.2867,4753.0,4752.9,0.1048]
[1755933229084,0.7227,4753.0,4752.9,0.1048]
[1755933230331,0.7227,4753.0,4752.8,0.004]
[1755933230894,0.001,4753.4,4752.8,0.004]
[1755933231121,0.437,4753.4,4752.8,0.004]
[1755933231550,0.2961,4752.9,4752.8,0.004]
[1755933232310,0.7321,4752.9,4752.8,0.004]
[1755933234687,5.9729,4752.9,4752.8,0.004]
[1755933236501,6.6329,4752.9,4752.8,0.004]
[1755933240222,6.717201,4752.9,4752.8,0.004]
[1755933240746,3.66,4752.8,4752.1,0.004]
[1755933241052,13.19163288,4752.2,4752.1,0.004]
[1755933241353,16.81523288,4752.2,4752.1,0.004]
[1755933241725,17.25123288,4752.2,4752.1,0.004]
[1755933245126,13.73323288,4752.2,4752.1,0.004]
[1755933245330,17.25223288,4752.2,4752.1,0.004]
[1755933245853,17.33655088,4752.2,4752.1,0.004]
[1755933246760,17.33555088,4752.2,4752.1,0.004]
[1755933247335,17.25123288,4752.2,4752.1,0.004]
[1755933249765,3.66,4752.1,4751.6,0.004]
[1755933249956,3.66,4752.1,4750.8,0.024]
[1755933249957,12.89553288,4751.4,4750.8,0.024]
[1755933250151,16.81823288,4751.4,4750.8,0.024]
[1755933250358,17.25423288,4751.4,4750.8,0.024]
[1755933252285,16.81823288,4751.4,4750.8,0.024]
[1755933252689,16.81823288,4751.4,4751.3,0.3054]
[1755933252690,3.521,4751.4,4751.3,0.3054]
[1755933252838,3.6266,4751.4,4751.3,0.7489]
[1755933254753,3.6286,4751.4,4751.3,0.7489]
[1755933256869,3.6286,4751.4,4751.3,0.3054]
[1755933258144,3.6286,4751.4,4751.3,0.7489]
[1755933258371,1.618,4752.0,4751.3,0.7489]
[1755933258578,3.521,4751.9,4751.4,0.4415]
[1755933258791,3.521,4751.9,4751.8,0.2956]
[1755933259155,3.521,4751.9,4751.8,0.7371]
[1755933260259,1.618,4752.0,4751.8,0.7371]
[1755933260481,3.522,4751.9,4751.8,0.7371]
[1755933260680,3.522,4751.9,4751.8,0.2956]
[1755933261252,3.522,4751.9,4751.8,0.7371]
[1755933263760,1.618,4752.0,4751.8,0.7371]
[1755933263970,3.521,4751.9,4751.8,0.7371]
[1755933264169,3.522,4751.9,4751.8,0.2956]
[1755933264786,3.522,4751.9,4751.8,0.7371]
[1755933264985,3.522,4751.9,4751.8,0.2956]
[1755933265187,3.522,4751.9,4751.5,0.1056]
[1755933265388,3.522,4751.9,4751.8,0.2956]
[1755933266492,3.815,4751.9,4751.5,0.1056]
[1755933269194,0.1056,4751.8,4751.3,0.004]
[1755933273006,0.475,4751.7,4751.3,0.004]
[1755933273166,3.518,4751.6,4751.3,0.004]
[1755933277409,0.1056,4751.8,4751.5,0.2956]
[1755933277567,3.517,4751.7,4751.5,0.2956]
[1755933277767,3.517,4751.7,4751.5,0.7371]
[1755933279518,3.517,4751.7,4751.5,0.2956]
[1755933279680,3.517,4751.7,4751.6,0.4415]
[1755933280009,3.517,4751.7,4751.6,0.2956]
[1755933282287,3.518,4751.7,4751.6,0.7371]
[1755933282787,3.518,4751.7,4751.6,0.2956]
[1755933285341,3.518,4751.7,4751.3,0.4455]
[1755933285809,3.518,4751.7,4751.3,0.004]
[1755933286011,0.475,4751.6,4751.3,0.004]
[1755933290239,3.517,4751.5,4751.3,0.004]
[1755933291055,0.7762,4751.4,4751.3,0.004]
[1755933291850,0.3092,4751.4,4751.3,0.004]
[1755933295457,3.517,4751.4,4751.3,0.004]
[1755933296454,3.8262,4751.4,4751.3,0.004]
[1755933297653,3.8262,4751.4,4751.3,0.00248273]
[1755933297954,4.26628,4751.4,4751.3,0.00248273]
[1755933298153,4.73328,4751.4,4751.3,0.00248273]
[1755933303837,3.517,4751.4,4751.3,0.31398273]
[1755933304037,3.517,4751.4,4751.3,0.76118273]
[1755933304235,0.001,4751.6,4751.3,0.76118273]
[1755933304434,3.517,4751.4,4751.3,0.31398273]
[1755933305257,3.8262,4751.4,4751.3,0.00248273]
[1755933305425,4.68658,4751.4,4751.3,0.00248273]
[1755933305630,14.68771288,4751.4,4751.3,0.00248273]
[1755933306152,17.68771288,4751.4,4751.3,0.00248273]
[1755933307967,0.39338,4751.4,4751.3,0.31398273]
[1755933308166,3.517,4751.4,4751.3,0.76118273]
[1755933308825,0.001,4751.6,4751.3,0.76118273]
[1755933309028,3.517,4751.5,4751.3,0.76118273]
[1755933309462,3.517,4751.5,4751.3,0.31398273]
[1755933310066,3.517,4751.5,4751.3,0.76118273]
[1755933311062,3.517,4751.5,4751.4,0.4472]
[1755933311364,0.001,4751.6,4751.4,0.7587]
[1755933311536,3.517,4751.5,4751.4,0.3115]
[1755933311732,3.517,4751.5,4751.4,0.7587]
[1755933312557,3.517,4751.5,4751.4,0.3115]
[1755933314232,3.517,4751.5,4751.3,0.00248273]
[1755933314233,4.6452,4751.5,4751.3,0.00248273]
[1755933314434,0.467,4751.4,4751.3,0.00248273]
[1755933314639,0.7762,4751.4,4751.3,0.00248273]
[1755933315246,1.4362,4751.4,4751.3,0.00248273]
[1755933318038,1.5418,4751.4,4751.3,0.00248273]
[1755933318233,1.8748701,4751.4,4751.3,0.00248273]
[1755933319368,4.8748701,4751.4,4751.3,0.00248273]
[1755933319975,5.3918701,4751.4,4751.3,0.00248273]
[1755933320344,0.7478701,4751.4,4751.3,0.00248273]
[1755933320759,0.1066,4751.5,4751.3,0.29778273]
[1755933320959,3.517,4751.4,4751.3,0.29778273]
[1755933321642,0.001,4751.5,4751.3,0.75008273]
[1755933321843,0.001,4751.5,4751.3,0.29778273]
[1755933322038,0.001,4751.5,4751.4,0.4523]
[1755933322245,3.518,4751.5,4751.4,0.7476]
[1755933323582,3.518,4751.5,4751.4,0.2953]
[1755933323982,4.19546,4751.5,4751.3,0.00248273]
[1755933324157,0.1056,4751.4,4751.3,0.00248273]
[1755933324667,0.1056,4751.4,4751.3,0.29778273]
[1755933325388,0.8924,4751.4,4751.3,0.00248273]
[1755933325602,1.2148101,4751.4,4751.3,0.00248273]
[1755933330087,0.7428101,4751.4,4751.3,0.00248273]
[1755933330263,3.517,4751.4,4751.3,0.75008273]
[1755933331678,3.518,4751.4,4751.3,0.75008273]
[1755933332960,0.001,4751.4,4751.3,0.75008273]
[1755933333160,0.001,4751.4,4751.3,0.85568273]
[1755933335505,0.001,4751.4,4751.3,0.40338273]
[1755933336083,0.001,4751.4,4751.3,0.29778273]
[1755933337724,0.001,4751.4,4751.3,0.75008273]
[1755933338678,0.001,4751.4,4751.3,0.29778273]
[1755933340522,0.001,4751.4,4751.3,0.75008273]
[1755933341086,0.001,4751.4,4751.3,0.29778273]
[1755933343118,0.001,4751.4,4751.3,0.75008273]
[1755933343517,0.001,4751.4,4751.3,0.85568273]
[1755933344021,0.001,4751.4,4751.3,0.93008273]
[1755933349404,0.001,4751.4,4751.3,0.9511296]
[1755933349726,0.001,4751.4,4751.3,4.98230428]
[1755933350030,0.001,4751.4,4751.3,4.85542529]
[1755933350596,0.001,4751.4,4751.3,4.959247]
[1755933352426,0.001,4751.4,4751.3,4.85542529]
[1755933356415,0.001,4751.4,4751.3,8.37142529]
[1755933359927,0.001,4751.4,4751.3,8.45569829]
[1755933360635,0.001,4751.4,4751.3,8.00339829]
[1755933360827,0.001,4751.4,4751.3,8.46749829]
[1755933361219,0.001,4751.4,4751.3,8.00339829]
[1755933361406,0.001,4751.4,4751.3,4.48739829]
[1755933361602,0.001,4751.4,4751.3,8.00339829]
[1755933362115,0.001,4751.4,4751.3,8.46749829]
[1755933362714,0.001,4751.4,4751.3,7.70809829]
[1755933362919,0.001,4751.4,4751.3,8.01679829]
[1755933363465,0.001,4751.4,4751.3,8.48089829]
[1755933363977,0.3072,4751.4,4751.3,0.53209829]
[1755933364310,0.7504,4751.4,4751.3,0.18248273]
[1755933364626,0.001,4751.4,4751.3,0.0979296]
[1755933364861,0.3072,4751.4,4751.3,0.18248273]
[1755933365156,0.7504,4751.4,4751.3,0.18248273]
[1755933366064,0.856,4751.4,4751.3,0.07688273]
[1755933366238,1.1036,4751.4,4751.3,0.07688273]
[1755933372141,1.7636,4751.4,4751.3,0.07688273]
[1755933375488,5.2806,4751.4,4751.3,0.07688273]
[1755933376182,4.6206,4751.4,4751.3,0.07688273]
[1755933381900,5.2806,4751.4,4751.3,0.07688273]
[1755933384666,8.2806,4751.4,4751.3,0.07688273]
[1755933385511,3.66,4751.3,4750.8,0.024]
[1755933385809,3.66,4750.8,4749.8,0.02]
[1755933386119,13.19793288,4750.3,4749.8,0.02]
[1755933386408,18.58153288,4750.3,4749.8,0.02]
[1755933386701,19.02683288,4750.3,4749.8,0.02]
[1755933389168,6.2733,4750.3,4749.8,0.02]
[1755933389401,19.02883288,4750.3,4749.8,0.02]
[1755933395146,3.66,4750.2,4749.8,0.02]
[1755933395350,0.9624,4749.9,4749.8,0.02]
[1755933395523,4.589,4749.9,4749.8,0.02]
[1755933395851,5.0343,4749.9,4749.8,0.02]
[1755933398347,4.589,4749.9,4749.8,0.02]
[1755933398844,5.0343,4749.9,4749.8,0.02]
[1755933399054,5.2819,4749.9,4749.8,0.02]
[1755933400943,8.2819,4749.9,4749.8,0.02]
[1755933401143,8.73322205,4749.9,4749.8,0.02]
[1755933401646,8.73322205,4749.9,4749.2,0.004]
[1755933401647,5.879,4749.8,4749.2,0.004]
[1755933401848,13.30353288,4749.3,4749.2,0.004]
[1755933402055,19.08972154,4749.3,4749.2,0.004]
[1755933402261,19.53502154,4749.3,4749.2,0.004]
[1755933402460,19.33915493,4749.3,4749.2,0.004]
[1755933403130,15.26825493,4749.3,4749.2,0.004]
[1755933403337,18.69013288,4749.3,4749.2,0.004]
[1755933403546,15.17013288,4749.3,4749.2,0.004]
[1755933403750,18.69013288,4749.3,4749.2,0.004]
[1755933404267,19.13543288,4749.3,4749.2,0.004]
[1755933406030,19.58642299,4749.3,4749.2,0.004]
[1755933409266,19.78229911,4749.3,4749.2,0.004]
[1755933412377,19.97847349,4749.3,4749.2,0.004]
[1755933413986,24.90310355,4749.3,4749.2,0.004]
[1755933414283,12.89553288,4748.3,4748.2,0.004]
[1755933414447,19.29900355,4748.3,4748.2,0.004]
[1755933414644,19.73940355,4748.3,4748.2,0.004]
[1755933414996,22.41290355,4748.3,4748.2,0.004]
[1755933415494,22.41290355,4748.3,4746.8,0.4745]